[Event "Titled Tuesday Blitz November 29 Early 2022"]
[White "Koridze, Lile"]
[Black "Hristodoulou, Panagiotis"]
[WhiteFideId "13612514"]
[BlackFideId "4214340"]
[WhiteElo "2050"]
[BlackElo "2272"]
[Result "1-0"]
[Round "01"]
[TimeControl "180+1"]
[Date "2022.11.30"]
[WhiteClock "0:01:26"]
[BlackClock "0:02:27"]

1. d4 {[%clk 0:02:57]}  Nf6 {[%clk 0:02:57]} 2. c4 {[%clk 0:02:53]}  e6 {[%clk 0:02:57]} 3. Nf3 {[%clk 0:02:51]}  d5 {[%clk 0:02:55]} 4. g3 {[%clk 0:02:50]}  h6 {[%clk 0:02:53]} 5. Bg2 {[%clk 0:02:50]}  Be7 {[%clk 0:02:53]} 6. O-O {[%clk 0:02:48]}  O-O {[%clk 0:02:53]} 7. Qc2 {[%clk 0:02:42]}  Nc6 {[%clk 0:02:45]} 8. a3 {[%clk 0:02:41]}  dxc4 {[%clk 0:02:44]} 9. Qxc4 {[%clk 0:02:38]}  Bd6 {[%clk 0:02:42]} 10. Nc3 {[%clk 0:02:26]}  e5 {[%clk 0:02:40]} 11. dxe5 {[%clk 0:01:43]}  Nxe5 {[%clk 0:02:38]} 12. Nxe5 {[%clk 0:01:43]}  Bxe5 {[%clk 0:02:39]} 13. Rd1 {[%clk 0:01:41]}  Qe7 {[%clk 0:02:34]} 14. Be3 {[%clk 0:01:41]}  Be6 {[%clk 0:02:29]} 15. Qb5 {[%clk 0:01:27]}  c6 {[%clk 0:02:27]} 16. Qxe5 {[%clk 0:01:26]} 1-0


[Site "https://www.chess.com"]

[Event "Titled Tuesday Blitz November 29 Early 2022"]
[White "Kuznetsov, Mikhail"]
[Black "Gorodetzky, David"]
[WhiteFideId "4117190"]
[BlackFideId "2813416"]
[WhiteElo "1981"]
[BlackElo "2497"]
[Result "0-1"]
[Round "01"]
[TimeControl "180+1"]
[Date "2022.11.30"]
[WhiteClock "0:00:01"]
[BlackClock "0:00:10"]

1. Nf3 {[%clk 0:02:57]}  Nf6 {[%clk 0:02:56]} 2. g3 {[%clk 0:02:56]}  b5 {[%clk 0:02:54]} 3. Bg2 {[%clk 0:02:56]}  Bb7 {[%clk 0:02:54]} 4. O-O {[%clk 0:02:56]}  c5 {[%clk 0:02:55]} 5. d3 {[%clk 0:02:55]}  d6 {[%clk 0:02:53]} 6. e4 {[%clk 0:02:54]}  e6 {[%clk 0:02:44]} 7. Nc3 {[%clk 0:02:42]}  Be7 {[%clk 0:02:44]} 8. Nxb5 {[%clk 0:02:41]}  Nc6 {[%clk 0:02:26]} 9. Nc3 {[%clk 0:02:32]}  O-O {[%clk 0:02:25]} 10. Ne2 {[%clk 0:02:30]}  Rb8 {[%clk 0:02:21]} 11. Nd2 {[%clk 0:02:30]}  d5 {[%clk 0:02:18]} 12. Nf4 {[%clk 0:02:11]}  Qd6 {[%clk 0:01:44]} 13. Re1 {[%clk 0:01:57]}  Rfd8 {[%clk 0:01:44]} 14. b3 {[%clk 0:01:47]}  dxe4 {[%clk 0:01:06]} 15. Nxe4 {[%clk 0:01:31]}  Nxe4 {[%clk 0:01:06]} 16. Bxe4 {[%clk 0:01:31]}  Bf6 {[%clk 0:01:07]} 17. Rb1 {[%clk 0:01:31]}  Nb4 {[%clk 0:01:05]} 18. Bxb7 {[%clk 0:01:21]}  Rxb7 {[%clk 0:01:02]} 19. Bb2 {[%clk 0:01:12]}  Bxb2 {[%clk 0:00:51]} 20. Rxb2 {[%clk 0:01:13]}  e5 {[%clk 0:00:51]} 21. Ne2 {[%clk 0:01:07]}  e4 {[%clk 0:00:51]} 22. a3 {[%clk 0:00:53]}  Qf6 {[%clk 0:00:51]} 23. Ra2 {[%clk 0:00:49]}  Nd5 {[%clk 0:00:23]} 24. c4 {[%clk 0:00:15]}  exd3 {[%clk 0:00:19]} 25. cxd5 {[%clk 0:00:12]}  dxe2 {[%clk 0:00:17]} 26. Raxe2 {[%clk 0:00:13]}  g6 {[%clk 0:00:16]} 27. Re8+ {[%clk 0:00:11]}  Rxe8 {[%clk 0:00:17]} 28. Rxe8+ {[%clk 0:00:11]}  Kg7 {[%clk 0:00:18]} 29. Re2 {[%clk 0:00:08]}  Qc3 {[%clk 0:00:16]} 30. Re3 {[%clk 0:00:08]}  Qb2 {[%clk 0:00:15]} 31. d6 {[%clk 0:00:05]}  Rd7 {[%clk 0:00:13]} 32. a4 {[%clk 0:00:03]}  h5 {[%clk 0:00:11]} 33. Rd3 {[%clk 0:00:03]}  a6 {[%clk 0:00:09]} 34. Kg2 {[%clk 0:00:04]}  Qe5 {[%clk 0:00:08]} 35. Qd2 {[%clk 0:00:04]}  Qe4+ {[%clk 0:00:08]} 36. Kg1 {[%clk 0:00:03]}  Qe5 {[%clk 0:00:08]} 37. Qc3 {[%clk 0:00:03]}  Kf6 {[%clk 0:00:08]} 38. Qxe5+ {[%clk 0:00:03]}  Kxe5 {[%clk 0:00:09]} 39. Rc3 {[%clk 0:00:02]}  Kd4 {[%clk 0:00:09]} 40. Rc4+ {[%clk 0:00:01]}  Kd5 {[%clk 0:00:10]} 0-1


[Site "https://www.chess.com"]

[Event "Titled Tuesday Blitz November 29 Early 2022"]
[White "Kuznetsova, Olga"]
[Black "Ibarra Jerez, Jose Carlos"]
[WhiteFideId "4191323"]
[BlackFideId "2226332"]
[WhiteElo "2134"]
[BlackElo "2638"]
[Result "0-1"]
[Round "01"]
[TimeControl "180+1"]
[Date "2022.11.30"]
[WhiteClock "0:01:13"]
[BlackClock "0:01:36"]

1. d4 {[%clk 0:02:57]}  Nf6 {[%clk 0:02:59]} 2. Bg5 {[%clk 0:02:56]}  d5 {[%clk 0:02:57]} 3. Bxf6 {[%clk 0:02:54]}  gxf6 {[%clk 0:02:56]} 4. Nd2 {[%clk 0:02:54]}  c5 {[%clk 0:02:55]} 5. e3 {[%clk 0:02:54]}  e5 {[%clk 0:02:55]} 6. c3 {[%clk 0:02:49]}  Nc6 {[%clk 0:02:55]} 7. Nb3 {[%clk 0:02:38]}  cxd4 {[%clk 0:02:53]} 8. exd4 {[%clk 0:02:37]}  e4 {[%clk 0:02:53]} 9. g3 {[%clk 0:02:34]}  f5 {[%clk 0:02:52]} 10. Nh3 {[%clk 0:02:31]}  Bh6 {[%clk 0:02:50]} 11. Nc1 {[%clk 0:02:25]}  f4 {[%clk 0:02:42]} 12. Nxf4 {[%clk 0:02:24]}  Bxf4 {[%clk 0:02:42]} 13. gxf4 {[%clk 0:02:24]}  Qh4 {[%clk 0:02:43]} 14. Qd2 {[%clk 0:02:20]}  Bg4 {[%clk 0:02:40]} 15. Be2 {[%clk 0:02:16]}  O-O-O {[%clk 0:02:38]} 16. Bxg4+ {[%clk 0:02:15]}  Qxg4 {[%clk 0:02:39]} 17. Ne2 {[%clk 0:02:13]}  Na5 {[%clk 0:02:19]} 18. b3 {[%clk 0:02:02]}  Qf3 {[%clk 0:02:18]} 19. O-O-O {[%clk 0:01:58]}  Qxf2 {[%clk 0:02:17]} 20. Rdf1 {[%clk 0:01:47]}  Qh4 {[%clk 0:02:14]} 21. Qe3 {[%clk 0:01:46]}  Rhg8 {[%clk 0:02:06]} 22. Ng3 {[%clk 0:01:43]}  Qh3 {[%clk 0:02:00]} 23. Kb2 {[%clk 0:01:35]}  h5 {[%clk 0:01:57]} 24. Re1 {[%clk 0:01:20]}  h4 {[%clk 0:01:54]} 25. Nf1 {[%clk 0:01:16]}  Rg2+ {[%clk 0:01:37]} 26. Nd2 {[%clk 0:01:16]}  Qxe3 {[%clk 0:01:36]} 27. Rxe3 {[%clk 0:01:13]}  Rxd2+ {[%clk 0:01:36]} 0-1


[Site "https://www.chess.com"]

[Event "Titled Tuesday Blitz November 29 Early 2022"]
[White "Kvaloy, Aksel Bu"]
[Black "Timofeev, Artyom"]
[WhiteFideId "1528815"]
[BlackFideId "4140419"]
[WhiteElo "2184"]
[BlackElo "2586"]
[Result "0-1"]
[Round "01"]
[TimeControl "180+1"]
[Date "2022.11.30"]
[WhiteClock "0:00:17"]
[BlackClock "0:00:20"]

1. d4 {[%clk 0:02:53]}  Nf6 {[%clk 0:02:58]} 2. c4 {[%clk 0:02:52]}  g6 {[%clk 0:02:58]} 3. Nc3 {[%clk 0:02:51]}  d5 {[%clk 0:02:58]} 4. cxd5 {[%clk 0:02:50]}  Nxd5 {[%clk 0:02:58]} 5. Bd2 {[%clk 0:02:50]}  Bg7 {[%clk 0:02:57]} 6. e4 {[%clk 0:02:50]}  Nb6 {[%clk 0:02:57]} 7. Be3 {[%clk 0:02:44]}  O-O {[%clk 0:02:56]} 8. Nf3 {[%clk 0:02:43]}  Bg4 {[%clk 0:02:55]} 9. Be2 {[%clk 0:02:43]}  Nc6 {[%clk 0:02:54]} 10. d5 {[%clk 0:02:40]}  Bxf3 {[%clk 0:02:54]} 11. Bxf3 {[%clk 0:02:40]}  Ne5 {[%clk 0:02:53]} 12. Be2 {[%clk 0:02:40]}  Nec4 {[%clk 0:02:51]} 13. Bc1 {[%clk 0:02:36]}  c6 {[%clk 0:02:51]} 14. O-O {[%clk 0:02:33]}  cxd5 {[%clk 0:02:50]} 15. Nxd5 {[%clk 0:02:32]}  Nxb2 {[%clk 0:02:41]} 16. Qb3 {[%clk 0:01:53]}  Nd3 {[%clk 0:02:25]} 17. Bxd3 {[%clk 0:01:35]}  Nxd5 {[%clk 0:02:11]} 18. Bb2 {[%clk 0:01:12]}  Bxb2 {[%clk 0:02:06]} 19. Qxb2 {[%clk 0:01:13]}  Nf4 {[%clk 0:02:06]} 20. Bc4 {[%clk 0:01:13]}  Rc8 {[%clk 0:01:58]} 21. Rac1 {[%clk 0:01:11]}  Qb6 {[%clk 0:01:46]} 22. Qxb6 {[%clk 0:01:08]}  axb6 {[%clk 0:01:46]} 23. g3 {[%clk 0:01:07]}  Ne6 {[%clk 0:01:41]} 24. Bxe6 {[%clk 0:01:07]}  fxe6 {[%clk 0:01:41]} 25. Rb1 {[%clk 0:01:02]}  Rc6 {[%clk 0:01:40]} 26. Rb5 {[%clk 0:00:58]}  Ra8 {[%clk 0:01:36]} 27. Rfb1 {[%clk 0:00:57]}  Ra6 {[%clk 0:01:35]} 28. R1b2 {[%clk 0:00:56]}  Kf7 {[%clk 0:01:34]} 29. Kg2 {[%clk 0:00:56]}  Ke8 {[%clk 0:01:33]} 30. Rd2 {[%clk 0:00:50]}  Ra5 {[%clk 0:01:31]} 31. Rb3 {[%clk 0:00:46]}  b5 {[%clk 0:01:30]} 32. Rbd3 {[%clk 0:00:45]}  Rca6 {[%clk 0:01:17]} 33. Rd8+ {[%clk 0:00:43]}  Kf7 {[%clk 0:01:17]} 34. R2d7 {[%clk 0:00:41]}  Ra7 {[%clk 0:00:47]} 35. Rc8 {[%clk 0:00:30]}  b6 {[%clk 0:00:44]} 36. Rxa7 {[%clk 0:00:31]}  Rxa7 {[%clk 0:00:44]} 37. Rc2 {[%clk 0:00:30]}  Ra4 {[%clk 0:00:43]} 38. Kf3 {[%clk 0:00:30]}  Kf6 {[%clk 0:00:40]} 39. Rb2 {[%clk 0:00:28]}  b4 {[%clk 0:00:40]} 40. Ke3 {[%clk 0:00:27]}  e5 {[%clk 0:00:39]} 41. Kd3 {[%clk 0:00:26]}  b5 {[%clk 0:00:39]} 42. Kc2 {[%clk 0:00:23]}  Ra3 {[%clk 0:00:34]} 43. Kd2 {[%clk 0:00:18]}  Ke6 {[%clk 0:00:29]} 44. Ke1 {[%clk 0:00:18]}  Ra4 {[%clk 0:00:29]} 45. Ke2 {[%clk 0:00:17]}  Kd6 {[%clk 0:00:29]} 46. Kd3 {[%clk 0:00:17]}  Kc5 {[%clk 0:00:28]} 47. Rc2+ {[%clk 0:00:17]}  Kb6 {[%clk 0:00:29]} 48. Rb2 {[%clk 0:00:17]}  Ra3+ {[%clk 0:00:28]} 49. Ke2 {[%clk 0:00:15]}  Kc5 {[%clk 0:00:29]} 50. f3 {[%clk 0:00:15]}  Kc4 {[%clk 0:00:28]} 51. Rd2 {[%clk 0:00:13]}  Kc3 {[%clk 0:00:25]} 52. Rd3+ {[%clk 0:00:13]}  Kb2 {[%clk 0:00:25]} 53. Rd2+ {[%clk 0:00:13]}  Kb1 {[%clk 0:00:25]} 54. Rd5 {[%clk 0:00:12]}  Rxa2+ {[%clk 0:00:25]} 55. Ke3 {[%clk 0:00:12]}  b3 {[%clk 0:00:23]} 56. Rxb5 {[%clk 0:00:12]}  Kc2 {[%clk 0:00:23]} 57. Rc5+ {[%clk 0:00:11]}  Kd1 {[%clk 0:00:22]} 58. Rd5+ {[%clk 0:00:10]}  Kc1 {[%clk 0:00:21]} 59. Rc5+ {[%clk 0:00:10]}  Rc2 {[%clk 0:00:21]} 60. Rxe5 {[%clk 0:00:10]}  b2 {[%clk 0:00:21]} 61. Rb5 {[%clk 0:00:11]}  b1=Q {[%clk 0:00:21]} 62. Rxb1+ {[%clk 0:00:12]}  Kxb1 {[%clk 0:00:22]} 63. Kd4 {[%clk 0:00:13]}  Rxh2 {[%clk 0:00:21]} 64. Ke5 {[%clk 0:00:13]}  Rh3 {[%clk 0:00:22]} 65. f4 {[%clk 0:00:14]}  Rxg3 {[%clk 0:00:22]} 66. f5 {[%clk 0:00:15]}  gxf5 {[%clk 0:00:21]} 67. exf5 {[%clk 0:00:16]}  h5 {[%clk 0:00:21]} 68. Ke6 {[%clk 0:00:16]}  Re3+ {[%clk 0:00:20]} 69. Kf7 {[%clk 0:00:17]}  h4 {[%clk 0:00:20]} 70. f6 {[%clk 0:00:17]}  exf6 {[%clk 0:00:20]} 0-1


[Site "https://www.chess.com"]

[Event "Titled Tuesday Blitz November 29 Early 2022"]
[White "Lehtosaari, Mauri"]
[Black "Van Foreest, Jorden"]
[WhiteFideId "501999"]
[BlackFideId "1039784"]
[WhiteElo "2500"]
[BlackElo "2661"]
[Result "0-1"]
[Round "01"]
[TimeControl "180+1"]
[Date "2022.11.30"]
[WhiteClock "0:00:15"]
[BlackClock "0:02:38"]

1. d4 {[%clk 0:02:56]}  g6 {[%clk 0:03:00]} 2. Nf3 {[%clk 0:02:56]}  Bg7 {[%clk 0:03:01]} 3. e3 {[%clk 0:02:55]}  d6 {[%clk 0:03:01]} 4. Bc4 {[%clk 0:02:55]}  Nd7 {[%clk 0:03:02]} 5. O-O {[%clk 0:02:54]}  e5 {[%clk 0:03:02]} 6. a4 {[%clk 0:02:48]}  Qe7 {[%clk 0:03:01]} 7. Ba2 {[%clk 0:02:46]}  e4 {[%clk 0:02:59]} 8. Nfd2 {[%clk 0:02:46]}  f5 {[%clk 0:03:00]} 9. c4 {[%clk 0:02:46]}  Ngf6 {[%clk 0:03:00]} 10. Nc3 {[%clk 0:02:47]}  O-O {[%clk 0:03:00]} 11. Nb5 {[%clk 0:02:25]}  c6 {[%clk 0:02:59]} 12. Nxd6 {[%clk 0:02:19]}  Kh8 {[%clk 0:03:00]} 13. c5 {[%clk 0:02:18]}  a5 {[%clk 0:02:58]} 14. f4 {[%clk 0:02:10]}  exf3 {[%clk 0:02:55]} 15. Nxf3 {[%clk 0:02:10]}  b6 {[%clk 0:02:56]} 16. Qc2 {[%clk 0:01:31]}  Ba6 {[%clk 0:02:56]} 17. Re1 {[%clk 0:01:28]}  bxc5 {[%clk 0:02:57]} 18. dxc5 {[%clk 0:01:27]}  Ne4 {[%clk 0:02:58]} 19. Nxe4 {[%clk 0:01:19]}  fxe4 {[%clk 0:02:59]} 20. Nd4 {[%clk 0:01:19]}  Nxc5 {[%clk 0:02:59]} 21. Nxc6 {[%clk 0:01:09]}  Qf6 {[%clk 0:02:59]} 22. Bd2 {[%clk 0:00:52]}  Qxc6 {[%clk 0:02:57]} 23. Rac1 {[%clk 0:00:51]}  Qf6 {[%clk 0:02:58]} 24. Bc3 {[%clk 0:00:48]}  Qb6 {[%clk 0:02:39]} 25. Bxg7+ {[%clk 0:00:47]}  Kxg7 {[%clk 0:02:40]} 26. Qxc5 {[%clk 0:00:47]}  Qxb2 {[%clk 0:02:41]} 27. Qe7+ {[%clk 0:00:37]}  Kh8 {[%clk 0:02:40]} 28. Bd5 {[%clk 0:00:37]}  Rae8 {[%clk 0:02:39]} 29. Qd6 {[%clk 0:00:35]}  Rc8 {[%clk 0:02:37]} 30. Rb1 {[%clk 0:00:26]}  Qf2+ {[%clk 0:02:37]} 31. Kh1 {[%clk 0:00:27]}  Bd3 {[%clk 0:02:37]} 32. Qe5+ {[%clk 0:00:26]}  Qf6 {[%clk 0:02:37]} 33. Qxf6+ {[%clk 0:00:27]}  Rxf6 {[%clk 0:02:38]} 34. Ra1 {[%clk 0:00:26]}  Rc5 {[%clk 0:02:38]} 35. Bb7 {[%clk 0:00:25]}  Rb6 {[%clk 0:02:39]} 36. Ba8 {[%clk 0:00:23]}  Rb8 {[%clk 0:02:37]} 37. Bxe4 {[%clk 0:00:15]}  Bxe4 {[%clk 0:02:38]} 0-1


[Site "https://www.chess.com"]

[Event "Titled Tuesday Blitz November 29 Early 2022"]
[White "Lewicki, Miroslaw"]
[Black "Lopez Del Alamo, Antonio"]
[WhiteFideId "1113380"]
[BlackFideId "2227339"]
[WhiteElo "2191"]
[BlackElo "2175"]
[Result "0-1"]
[Round "01"]
[TimeControl "180+1"]
[Date "2022.11.30"]
[WhiteClock "0:00:29"]
[BlackClock "0:00:13"]

1. g3 {[%clk 0:02:57]}  g6 {[%clk 0:02:58]} 2. Bg2 {[%clk 0:02:58]}  Bg7 {[%clk 0:02:57]} 3. Nf3 {[%clk 0:02:59]}  Nf6 {[%clk 0:02:57]} 4. O-O {[%clk 0:02:59]}  O-O {[%clk 0:02:58]} 5. c3 {[%clk 0:02:59]}  d6 {[%clk 0:02:56]} 6. d4 {[%clk 0:03:00]}  Nbd7 {[%clk 0:02:56]} 7. Re1 {[%clk 0:03:00]}  e5 {[%clk 0:02:54]} 8. e4 {[%clk 0:03:00]}  a5 {[%clk 0:02:53]} 9. Na3 {[%clk 0:03:00]}  b6 {[%clk 0:02:41]} 10. h3 {[%clk 0:02:59]}  Ba6 {[%clk 0:02:38]} 11. Nc2 {[%clk 0:02:54]}  Qe7 {[%clk 0:02:31]} 12. Ne3 {[%clk 0:02:48]}  c6 {[%clk 0:02:22]} 13. d5 {[%clk 0:02:45]}  c5 {[%clk 0:02:18]} 14. Ng4 {[%clk 0:02:43]}  c4 {[%clk 0:01:53]} 15. Bg5 {[%clk 0:02:32]}  h5 {[%clk 0:01:42]} 16. Nh6+ {[%clk 0:02:20]}  Kh7 {[%clk 0:01:34]} 17. Qd2 {[%clk 0:02:20]}  Nc5 {[%clk 0:01:24]} 18. Nh4 {[%clk 0:02:18]}  Rh8 {[%clk 0:00:56]} 19. N6f5 {[%clk 0:02:12]}  gxf5 {[%clk 0:00:50]} 20. Nxf5 {[%clk 0:02:13]}  Qd7 {[%clk 0:00:49]} 21. Bh6 {[%clk 0:02:12]}  Ncxe4 {[%clk 0:00:21]} 22. Rxe4 {[%clk 0:01:12]}  Qxf5 {[%clk 0:00:20]} 23. Bxg7 {[%clk 0:00:53]}  Kxg7 {[%clk 0:00:21]} 24. Rh4 {[%clk 0:00:51]}  Rag8 {[%clk 0:00:18]} 25. Re1 {[%clk 0:00:50]}  Kf8 {[%clk 0:00:18]} 26. b3 {[%clk 0:00:49]}  cxb3 {[%clk 0:00:18]} 27. axb3 {[%clk 0:00:50]}  Qg5 {[%clk 0:00:14]} 28. Qa2 {[%clk 0:00:43]}  Bb7 {[%clk 0:00:14]} 29. b4 {[%clk 0:00:43]}  Qxh4 {[%clk 0:00:12]} 30. gxh4 {[%clk 0:00:34]}  Bxd5 {[%clk 0:00:12]} 31. Qa3 {[%clk 0:00:35]}  Rxg2+ {[%clk 0:00:12]} 32. Kf1 {[%clk 0:00:35]}  Rhg8 {[%clk 0:00:12]} 33. Rd1 {[%clk 0:00:29]}  Bf3 {[%clk 0:00:13]} 0-1


[Site "https://www.chess.com"]

[Event "Titled Tuesday Blitz November 29 Early 2022"]
[White "Ljukin, Sergei"]
[Black "Kozak, Antoni"]
[WhiteFideId "14102200"]
[BlackFideId "21832030"]
[WhiteElo "2312"]
[BlackElo "2447"]
[Result "1-0"]
[Round "01"]
[TimeControl "180+1"]
[Date "2022.11.30"]
[WhiteClock "0:00:42"]
[BlackClock "0:01:40"]

1. e4 {[%clk 0:02:59]}  c6 {[%clk 0:03:00]} 2. d4 {[%clk 0:02:59]}  d5 {[%clk 0:03:01]} 3. e5 {[%clk 0:03:00]}  Bf5 {[%clk 0:03:00]} 4. Nd2 {[%clk 0:02:59]}  e6 {[%clk 0:03:00]} 5. Nb3 {[%clk 0:03:00]}  Ne7 {[%clk 0:03:00]} 6. Nf3 {[%clk 0:02:59]}  Bg6 {[%clk 0:03:00]} 7. Be2 {[%clk 0:02:59]}  Nf5 {[%clk 0:03:00]} 8. O-O {[%clk 0:03:00]}  Nd7 {[%clk 0:03:00]} 9. a4 {[%clk 0:03:00]}  Be7 {[%clk 0:03:00]} 10. a5 {[%clk 0:03:00]}  O-O {[%clk 0:03:00]} 11. g4 {[%clk 0:02:59]}  Nh4 {[%clk 0:02:59]} 12. Nxh4 {[%clk 0:02:59]}  Bxh4 {[%clk 0:03:00]} 13. f4 {[%clk 0:02:59]}  f5 {[%clk 0:03:01]} 14. Be3 {[%clk 0:02:51]}  fxg4 {[%clk 0:02:58]} 15. Bxg4 {[%clk 0:02:51]}  Bf5 {[%clk 0:02:59]} 16. Kh1 {[%clk 0:02:50]}  Be7 {[%clk 0:02:45]} 17. Nd2 {[%clk 0:02:47]}  c5 {[%clk 0:02:44]} 18. Rg1 {[%clk 0:02:36]}  Rc8 {[%clk 0:02:39]} 19. Bxf5 {[%clk 0:02:31]}  Rxf5 {[%clk 0:02:37]} 20. Qg4 {[%clk 0:02:31]}  g6 {[%clk 0:02:37]} 21. Nf3 {[%clk 0:02:30]}  c4 {[%clk 0:02:14]} 22. Bf2 {[%clk 0:02:16]}  Qf8 {[%clk 0:02:11]} 23. Bh4 {[%clk 0:02:10]}  Kh8 {[%clk 0:01:57]} 24. Bxe7 {[%clk 0:02:06]}  Qxe7 {[%clk 0:01:57]} 25. Nh4 {[%clk 0:02:05]}  Rh5 {[%clk 0:01:58]} 26. Nf3 {[%clk 0:01:41]}  Rf8 {[%clk 0:01:58]} 27. Ng5 {[%clk 0:01:39]}  Rf5 {[%clk 0:01:58]} 28. c3 {[%clk 0:01:28]}  Nf8 {[%clk 0:01:58]} 29. Rab1 {[%clk 0:01:16]}  Qg7 {[%clk 0:01:53]} 30. b3 {[%clk 0:01:10]}  Qh6 {[%clk 0:01:53]} 31. Rg2 {[%clk 0:01:05]}  Rh4 {[%clk 0:01:51]} 32. Qxf5 {[%clk 0:01:04]}  exf5 {[%clk 0:01:41]} 33. Nf7+ {[%clk 0:01:04]}  Kg7 {[%clk 0:01:42]} 34. Nxh6 {[%clk 0:01:05]}  Kxh6 {[%clk 0:01:41]} 35. bxc4 {[%clk 0:01:00]}  dxc4 {[%clk 0:01:41]} 36. Rf2 {[%clk 0:00:57]}  Ne6 {[%clk 0:01:41]} 37. d5 {[%clk 0:00:47]}  Nxf4 {[%clk 0:01:41]} 38. Rxf4 {[%clk 0:00:46]}  Rxf4 {[%clk 0:01:40]} 39. d6 {[%clk 0:00:47]}  Rf3 {[%clk 0:01:39]} 40. e6 {[%clk 0:00:43]}  Rd3 {[%clk 0:01:40]} 41. e7 {[%clk 0:00:42]} 1-0


[Site "https://www.chess.com"]

[Event "Titled Tuesday Blitz November 29 Early 2022"]
[White "Mamedov, Edgar"]
[Black "Wagner, Dennis"]
[WhiteFideId "13739980"]
[BlackFideId "24650684"]
[WhiteElo "2183"]
[BlackElo "2470"]
[Result "1/2-1/2"]
[Round "01"]
[TimeControl "180+1"]
[Date "2022.11.30"]
[WhiteClock "0:00:16"]
[BlackClock "0:00:12"]

1. d4 {[%clk 0:02:56]}  d5 {[%clk 0:02:58]} 2. c4 {[%clk 0:02:56]}  e6 {[%clk 0:02:59]} 3. cxd5 {[%clk 0:02:56]}  exd5 {[%clk 0:03:00]} 4. Nc3 {[%clk 0:02:56]}  c6 {[%clk 0:03:00]} 5. Nf3 {[%clk 0:02:56]}  Bd6 {[%clk 0:02:50]} 6. Bg5 {[%clk 0:02:56]}  Ne7 {[%clk 0:02:50]} 7. e3 {[%clk 0:02:56]}  Bf5 {[%clk 0:02:49]} 8. Bd3 {[%clk 0:02:56]}  Bxd3 {[%clk 0:02:49]} 9. Qxd3 {[%clk 0:02:57]}  h6 {[%clk 0:02:41]} 10. Bh4 {[%clk 0:02:56]}  Na6 {[%clk 0:02:35]} 11. O-O {[%clk 0:02:55]}  O-O {[%clk 0:02:33]} 12. a3 {[%clk 0:02:54]}  Re8 {[%clk 0:02:31]} 13. b4 {[%clk 0:02:53]}  Nc7 {[%clk 0:02:32]} 14. Rab1 {[%clk 0:02:53]}  Qd7 {[%clk 0:02:32]} 15. Na4 {[%clk 0:02:52]}  Qf5 {[%clk 0:02:12]} 16. Qxf5 {[%clk 0:02:50]}  Nxf5 {[%clk 0:02:13]} 17. Bg3 {[%clk 0:02:50]}  Bxg3 {[%clk 0:02:06]} 18. hxg3 {[%clk 0:02:50]}  Nb5 {[%clk 0:02:07]} 19. Ra1 {[%clk 0:02:38]}  Nfd6 {[%clk 0:02:03]} 20. Nc5 {[%clk 0:02:32]}  Nc3 {[%clk 0:01:59]} 21. a4 {[%clk 0:02:20]}  f6 {[%clk 0:01:58]} 22. Nd2 {[%clk 0:02:18]}  h5 {[%clk 0:01:55]} 23. Ra3 {[%clk 0:02:17]}  Nce4 {[%clk 0:01:39]} 24. Ndxe4 {[%clk 0:02:17]}  dxe4 {[%clk 0:01:37]} 25. Rb1 {[%clk 0:02:15]}  a6 {[%clk 0:01:21]} 26. Rd1 {[%clk 0:02:09]}  Rad8 {[%clk 0:01:13]} 27. Rc3 {[%clk 0:02:06]}  Re7 {[%clk 0:01:10]} 28. Rcc1 {[%clk 0:02:03]}  Ne8 {[%clk 0:01:03]} 29. Rb1 {[%clk 0:01:56]}  Kf7 {[%clk 0:01:00]} 30. b5 {[%clk 0:01:54]}  cxb5 {[%clk 0:00:58]} 31. axb5 {[%clk 0:01:54]}  a5 {[%clk 0:00:58]} 32. b6 {[%clk 0:01:52]}  Nd6 {[%clk 0:00:55]} 33. Ra1 {[%clk 0:01:50]}  Ra8 {[%clk 0:00:55]} 34. Ra4 {[%clk 0:01:48]}  Nc8 {[%clk 0:00:54]} 35. Rb1 {[%clk 0:01:44]}  f5 {[%clk 0:00:54]} 36. Rb5 {[%clk 0:01:43]}  g6 {[%clk 0:00:53]} 37. Raxa5 {[%clk 0:01:31]}  Rxa5 {[%clk 0:00:52]} 38. Rxa5 {[%clk 0:01:32]}  Nxb6 {[%clk 0:00:52]} 39. Rb5 {[%clk 0:01:32]}  Nd7 {[%clk 0:00:36]} 40. Nxb7 {[%clk 0:01:14]}  Nf6 {[%clk 0:00:36]} 41. Nd6+ {[%clk 0:01:11]}  Ke6 {[%clk 0:00:36]} 42. Nc4 {[%clk 0:01:09]}  Ra7 {[%clk 0:00:36]} 43. Rb6+ {[%clk 0:01:03]}  Kf7 {[%clk 0:00:33]} 44. Ne5+ {[%clk 0:01:02]}  Kg7 {[%clk 0:00:34]} 45. d5 {[%clk 0:00:53]}  Ra1+ {[%clk 0:00:31]} 46. Kh2 {[%clk 0:00:51]}  Ng4+ {[%clk 0:00:20]} 47. Nxg4 {[%clk 0:00:50]}  hxg4 {[%clk 0:00:21]} 48. Rb7+ {[%clk 0:00:39]}  Kf6 {[%clk 0:00:21]} 49. d6 {[%clk 0:00:33]}  Rd1 {[%clk 0:00:20]} 50. d7 {[%clk 0:00:33]}  Kg5 {[%clk 0:00:11]} 51. Ra7 {[%clk 0:00:29]}  Rd2 {[%clk 0:00:11]} 52. Kg1 {[%clk 0:00:23]}  Rd1+ {[%clk 0:00:12]} 53. Kh2 {[%clk 0:00:23]}  Rd2 {[%clk 0:00:13]} 54. Rc7 {[%clk 0:00:19]}  Rd1 {[%clk 0:00:12]} 55. Ra7 {[%clk 0:00:16]} 1/2-1/2


[Site "https://www.chess.com"]

[Event "Titled Tuesday Blitz November 29 Early 2022"]
[White "Manelyuk, Daniil"]
[Black "Blokhin, Sofia"]
[WhiteFideId "44173920"]
[BlackFideId "4508190"]
[WhiteElo "2209"]
[BlackElo "2005"]
[Result "1-0"]
[Round "01"]
[TimeControl "180+1"]
[Date "2022.11.30"]
[WhiteClock "0:00:07"]
[BlackClock "0:00:01"]

1. e4 {[%clk 0:02:58]}  c5 {[%clk 0:02:58]} 2. Nf3 {[%clk 0:02:57]}  e6 {[%clk 0:02:49]} 3. c4 {[%clk 0:02:53]}  Nc6 {[%clk 0:02:48]} 4. Nc3 {[%clk 0:02:52]}  e5 {[%clk 0:02:48]} 5. Bd3 {[%clk 0:02:34]}  Be7 {[%clk 0:02:44]} 6. O-O {[%clk 0:02:34]}  Nf6 {[%clk 0:02:43]} 7. Ne1 {[%clk 0:02:34]}  d6 {[%clk 0:02:33]} 8. f4 {[%clk 0:02:23]}  Bg4 {[%clk 0:02:23]} 9. Be2 {[%clk 0:02:16]}  Bxe2 {[%clk 0:02:19]} 10. Qxe2 {[%clk 0:02:16]}  Nd4 {[%clk 0:02:19]} 11. Qd3 {[%clk 0:02:11]}  Nd7 {[%clk 0:02:08]} 12. Nc2 {[%clk 0:02:04]}  O-O {[%clk 0:01:58]} 13. Nd5 {[%clk 0:02:02]}  a6 {[%clk 0:01:33]} 14. b3 {[%clk 0:01:39]}  Rb8 {[%clk 0:01:30]} 15. Nxd4 {[%clk 0:01:34]}  cxd4 {[%clk 0:01:23]} 16. Ba3 {[%clk 0:01:33]}  b5 {[%clk 0:01:18]} 17. fxe5 {[%clk 0:01:29]}  Nxe5 {[%clk 0:01:06]} 18. Qxd4 {[%clk 0:01:27]}  bxc4 {[%clk 0:00:49]} 19. Nxe7+ {[%clk 0:01:17]}  Qxe7 {[%clk 0:00:48]} 20. Bxd6 {[%clk 0:01:17]}  Rfd8 {[%clk 0:00:41]} 21. Qxe5 {[%clk 0:00:31]}  Qxd6 {[%clk 0:00:40]} 22. Qf5 {[%clk 0:00:31]}  Qd4+ {[%clk 0:00:34]} 23. Kh1 {[%clk 0:00:30]}  Rb7 {[%clk 0:00:21]} 24. bxc4 {[%clk 0:00:25]}  Qxc4 {[%clk 0:00:13]} 25. h3 {[%clk 0:00:24]}  Qd4 {[%clk 0:00:09]} 26. e5 {[%clk 0:00:20]}  g6 {[%clk 0:00:05]} 27. Qf6 {[%clk 0:00:18]}  Qxd2 {[%clk 0:00:02]} 28. e6 {[%clk 0:00:16]}  Rb2 {[%clk 0:00:01]} 29. exf7+ {[%clk 0:00:12]}  Kf8 {[%clk 0:00:01]} 30. Qh8+ {[%clk 0:00:11]}  Ke7 {[%clk 0:00:01]} 31. Rae1+ {[%clk 0:00:10]}  Kd7 {[%clk 0:00:02]} 32. Qxd8+ {[%clk 0:00:10]}  Kxd8 {[%clk 0:00:02]} 33. f8=Q+ {[%clk 0:00:10]}  Kc7 {[%clk 0:00:02]} 34. Rf7+ {[%clk 0:00:09]}  Kc6 {[%clk 0:00:02]} 35. Qc8+ {[%clk 0:00:09]}  Kb5 {[%clk 0:00:02]} 36. Re5+ {[%clk 0:00:09]}  Ka4 {[%clk 0:00:01]} 37. Qc6+ {[%clk 0:00:09]}  Ka3 {[%clk 0:00:01]} 38. Rf3+ {[%clk 0:00:08]}  Kxa2 {[%clk 0:00:01]} 39. Qxa6+ {[%clk 0:00:07]}  Kb1 {[%clk 0:00:01]} 40. Qf1+ {[%clk 0:00:07]}  Kc2 {[%clk 0:00:01]} 41. Rc5+ {[%clk 0:00:07]} 1-0


[Site "https://www.chess.com"]